Cogmind - Beta 13 @@@ ROGUE MODE // 2024.07.01 @ 02:56:09 Player: Switzy Result: Destroyed by H-55 Commando with Gauss Rifle Performance ------------- Evolutions (2) 1000 Regions Visited (4) 800 Robots Destroyed (28) 140 Value Destroyed (531) 531 Prototype IDs (0) 0 Alien Tech Used (0) 0 Bonus (0) 0 TOTAL SCORE: 2471 Bonus ------- None Cogmind --------- Core Integrity 0/550 Matter 250/300 Energy 100/100 System Corruption 0% Temperature Cool (0) Movement Core (400) Ox7 Location -8/Materials Parts ------- > --- POWER (2) -------- (None) > --- PROPULSION (3) --- (None) > --- UTILITY (3) ------ Large Storage Unit > --- WEAPON (3) ------- Improved Light Cannon > --- INVENTORY (15) --- (None) Peak State ------------ > --- POWER ------------ Ion Engine Light Nuclear Core > --- PROPULSION ------- Aluminum Leg Aluminum Leg > --- UTILITY ---------- Large Storage Unit Improved Terrain Scanner > --- WEAPON ----------- Small Laser Small Laser Beam Rifle > --- INVENTORY -------- (None) [Rating: 14] Favorites ----------- Power Ion Engine Engine Ion Engine Power Core Light Nuclear Core Propulsion Aluminum Leg Leg Aluminum Leg Utility Improved Terrain Scanner Device Improved Terrain Scanner Storage Large Storage Unit Protection Medium Armor Plating Weapon Light Assault Rifle Energy Gun Beam Rifle Ballistic Gun Light Assault Rifle Ballistic Cannon Improved Light Cannon Build | -11 -10 -9 -9 -8 ------- Run | Yrd Mat Mat Min Mat Slots Evolved 4 | . . 2 . 2 Power 1 | . . . . 1 Propulsion 1 | . . 1 . . Utility 1 | . . 1 . . Weapon 1 | . . . . 1 Parts Attached 26 | 7 1 10 5 3 Power 5 | 1 . 1 2 1 Engine 4 | 1 . 1 2 . Core 1 | . . . . 1 Reactor . | . . . . . Propulsion 6 | 2 . 3 1 . Treads . | . . . . . Leg 6 | 2 . 3 1 . Wheel . | . . . . . Hover . | . . . . . Flight . | . . . . . Utility 6 | 2 1 2 1 . Device 2 | 1 . 1 . . Storage 2 | 1 1 . . . Processor . | . . . . . Hackware . | . . . . . Protection 2 | . . 1 1 . Artifact . | . . . . . Weapon 9 | 2 . 4 1 2 Energy Gun 4 | 1 . 1 1 1 Energy Cannon . | . . . . . Ballistic Gun 4 | 1 . 3 . . Ballistic Cannon 1 | . . . . 1 Launcher . | . . . . . Special Weapon . | . . . . . Impact Weapon . | . . . . . Slashing Weapon . | . . . . . Piercing Weapon . | . . . . . Special Melee Weapon . | . . . . . Unidentified Prototypes . | . . . . . Parts Lost 19 | . 1 6 4 8 Power 3 | . . 1 . 2 Propulsion 6 | . . 2 2 2 Utility 4 | . . 2 1 1 Weapon 6 | . 1 1 1 3 Highest Loss Streak 8 | . 1 4 2 8 To Critical Strikes . | . . . . . Average Slot Usage (%) 81 | . 90 83 87 32 Engine 10 | . 14 9 11 3 Leg 26 | . 28 26 31 5 Device 11 | . 14 13 11 3 Storage 11 | . 13 11 11 9 Protection 2 | . . 3 3 . Energy Gun 7 | . 5 3 12 6 Ballistic Gun 11 | . 14 16 6 . Naked Turns . | . . . . . Heaviest Build 37 | 14 27 35 37 36 Greatest Support 30 | 20 20 30 30 20 Greatest Overweight (x) 10 | . 1 3 1 10 Average Overweight (x) . | . . . . 3 Largest Inventory Capacity 15 | 8 15 15 15 15 Average Capacity 14 | 5 8 15 15 15 Most Carried 5 | 5 5 4 4 1 Average Carried 1 | 2 3 . 1 . Final Capacity 15 | 8 15 15 15 15 Final Carried 4 | 2 4 . 2 . Class Distribution -------------------- 51% | Scavenger-Mutant 47% | Mutant Dominant Class ---------------- Mutant | -10/Materials Mutant | -9/Materials Scavenger-Mutant | -9/Mines Mutant | -8/Materials Resources | -11 -10 -9 -9 -8 ----------- Run | Yrd Mat Mat Min Mat Matter Collected 508 | 58 19 379 52 . Remotely . | . . . . . Salvage Created 803 | 140 49 281 290 43 Parts 61 | 14 3 22 21 1 Haulers Intercepted . | . . . . . Recyclers Shooed . | . . . . . Parts Field Recycled . | . . . . . Retrieved Matter . | . . . . . Parts Self-Destructed . | . . . . . Prevented . | . . . . . Kills | -11 -10 -9 -9 -8 ------- Run | Yrd Mat Mat Min Mat Combat Hostiles Destroyed 22 | . 3 8 10 1 Guns 21 | . 3 8 10 . Cannons 1 | . . . . 1 Classes Destroyed 7 | 2 1 3 1 . Worker 2 | . . . 2 . Tunneler 2 | 2 . . . . Recycler 1 | 1 . . . . Watcher 1 | . . 1 . . Swarmer 13 | . 3 4 6 . Grunt 5 | . . 1 4 . Sentry 4 | . . 3 . 1 Best Kill Streak 5 | 3 3 5 3 1 Combat Bots Only 4 | . 3 4 3 1 Max Kills in Single Turn 2 | 2 1 1 1 1 Gunslinging . | . . . . . Exploded . | . . . . . Melee . | . . . . . Uniques/NPCs Destroyed . | . . . . . Combat | -11 -10 -9 -9 -8 -------- Run | Yrd Mat Mat Min Mat Hostile Shots Fired 320 | . 25 111 67 117 Missed 81 | . 6 31 14 30 Damage Taken 2751 | . 151 870 509 1221 Core 899 | . 21 223 89 566 Absorbed by Shields . | . . . . . Core Remaining (%) 71 | 100 91 . 22 . Volleys Fired 107 | 2 10 58 27 10 Largest 2 | 2 2 2 2 1 Hottest 96 | 60 60 76 96 39 Shots Fired 182 | 4 15 104 49 10 Gun 172 | 4 15 104 49 . Cannon 10 | . . . . 10 Launcher . | . . . . . Special . | . . . . . Kinetic 137 | 2 10 101 14 10 Thermal 38 | . . 3 35 . Explosive . | . . . . . Electromagnetic 7 | 2 5 . . . Robot Hit Streak 13 | 2 5 13 8 6 Robot Miss Streak 6 | . 3 6 4 1 Penetration Max . | . . . . . Secondary Targets 4 | . . . 4 . Max Gunslinging Chain 1 | . . . 1 . Shots Hit Robots 109 | 2 9 62 28 8 Core Hits 47 | 3 4 23 16 1 Critical Kills . | . . . . . Critical Parts Destroyed 1 | . . 1 . . Critical Strikes 2 | . . 1 1 . Burn 1 | . . . 1 . Destroy 1 | . . 1 . . Melee Attacks . | . . . . . Impact . | . . . . . Slashing . | . . . . . Piercing . | . . . . . Sneak Attacks . | . . . . . Combat Hostiles . | . . . . . Follow-up Attacks . | . . . . . Damage Inflicted 1138 | 38 87 486 391 136 Guns 1002 | 38 87 486 391 . Cannons 136 | . . . . 136 Explosions . | . . . . . Melee . | . . . . . Ramming . | . . . . . Kinetic 765 | 10 55 486 78 136 Thermal 313 | . . . 313 . Explosive . | . . . . . Electromagnetic 60 | 28 32 . . . Impact . | . . . . . Slashing . | . . . . . Piercing . | . . . . . Highest Corruption . | . . . . . Average Corruption . | . . . . . Corruption Purged . | . . . . . Corruption Blocked . | . . . . . Overload Shots . | . . . . . Overflow Damage . | . . . . . Projectiles . | . . . . . Explosions . | . . . . . Melee . | . . . . . Knockbacks 1 | . . . . 1 Impact . | . . . . . Kinetic 1 | . . . . 1 Secondary . | . . . . . Self-Inflicted Damage . | . . . . . Shots . | . . . . . Rammed 1 | . . . . 1 Targets Rammed 1 | . . . . 1 Kicked . | . . . . . Crushed . | . . . . . Highest Temperature 198 | 20 20 37 198 15 Average Temperature 52 | 12 15 11 71 9 Received Heat Transfer 402 | . . 189 150 63 Siege Activations . | . . . . . Robots Corrupted . | . . . . . Combat Hostiles . | . . . . . Parts Fried . | . . . . . Impact Corruptions . | . . . . . Robots Melted . | . . . . . Combat Hostiles . | . . . . . Parts Melted 1 | . . . 1 . Heat Transferred 865 | . . . 865 . Parts Sabotaged . | . . . . . Parts Stolen . | . . . . . Parts Stripped . | . . . . . Power Chain Reactions . | . . . . . Alert | -11 -10 -9 -9 -8 ------- Run | Yrd Mat Mat Min Mat Peak Influence 227 | 15 84 227 175 45 Initial 35 | . 9 35 . 27 Average 69 | 2 50 98 51 14 Maximum Alert Level 1 | . . 1 . . Low Security (%) 94 | 100 100 88 100 100 Level 1 5 | . . 11 . . Level 2 . | . . . . . Level 3 . | . . . . . Level 4 . | . . . . . Level 5 . | . . . . . High Security . | . . . . . Max Security . | . . . . . Squads Dispatched 1 | . . 1 . . Investigation 1 | . . 1 . . Extermination . | . . . . . Reinforcement . | . . . . . Assault . | . . . . . Garrison . | . . . . . Intercept . | . . . . . Searches Triggered . | . . . . . Construction Impeded . | . . . . . Haulers Reinforced . | . . . . . Active Scanning Responses . | . . . . . Cargo Convoy Interrupts . | . . . . . Stealth | -11 -10 -9 -9 -8 --------- Run | Yrd Mat Mat Min Mat Distress Signals 3 | . . 2 . 1 Communications Jammed . | . . . . . Distress Signals . | . . . . . Times Spotted 40 | . 4 16 13 7 Peak Tracking Total 7 | . 3 5 4 7 Tactical Retreats 3 | . . 1 1 1 Traps | -11 -10 -9 -9 -8 ------- Run | Yrd Mat Mat Min Mat Traps Triggered 1 | . . 1 . . Indirectly . | . . . . . Trap Hack Attempts . | . . . . . Triggered . | . . . . . Disarmed . | . . . . . Reprogrammed . | . . . . . Reused . | . . . . . Traps Extracted . | . . . . . Installed . | . . . . . Triggered . | . . . . . Machines | -11 -10 -9 -9 -8 ---------- Run | Yrd Mat Mat Min Mat Machines Disabled . | . . . . . Max in Single Turn . | . . . . . Machines Repaired . | . . . . . Machines Dismantled . | . . . . . Machines Sabotaged . | . . . . . Overloaded Fab Kills . | . . . . . Hacking | -11 -10 -9 -9 -8 --------- Run | Yrd Mat Mat Min Mat Machines Accessed . | . . . . . Terminals . | . . . . . Fabricators . | . . . . . Repair Stations . | . . . . . Recycling Units . | . . . . . Scanalyzers . | . . . . . Garrison Access . | . . . . . Total Hacks . | . . . . . Successful . | . . . . . Failed . | . . . . . Catastrophic . | . . . . . Database Lockouts . | . . . . . Manual . | . . . . . Terminals . | . . . . . Fabricators . | . . . . . Repair Stations . | . . . . . Recycling Units . | . . . . . Scanalyzers . | . . . . . Garrison Access . | . . . . . Terminal Hacks . | . . . . . Fabricator Hacks . | . . . . . Repair Station Hacks . | . . . . . Recycling Unit Hacks . | . . . . . Scanalyzer . | . . . . . Garrison Access Hacks . | . . . . . Unauthorized Hacks . | . . . . . Terminals . | . . . . . Fabricators . | . . . . . Repair Stations . | . . . . . Recycling Units . | . . . . . Scanalyzers . | . . . . . Garrison Access . | . . . . . Data Cores Recovered . | . . . . . Used . | . . . . . Hacking Detections . | . . . . . Full Trace Events . | . . . . . Feedback Events . | . . . . . Feedback Blocked . | . . . . . Robot Schematics Acquired . | . . . . . Robots Built . | . . . . . Authchips . | . . . . . Time . | . . . . . Total Robot Build Rating . | . . . . . Part Schematics Acquired . | . . . . . Parts Built . | . . . . . Authchips . | . . . . . Time . | . . . . . Total Part Build Rating . | . . . . . Parts Repaired . | . . . . . Time . | . . . . . Parts Recycled . | . . . . . Recycled Matter . | . . . . . Retrieved Matter . | . . . . . Retrieved Components . | . . . . . Parts Scanalyzed . | . . . . . Part Schematics Acquired . | . . . . . Parts Damaged . | . . . . . Bothacking | -11 -10 -9 -9 -8 ------------ Run | Yrd Mat Mat Min Mat Used RIF Installer . | . . . . . Robots Hacked . | . . . . . Non-combat . | . . . . . Combat . | . . . . . Robot Hacks Applied . | . . . . . Relay Couplers Released . | . . . . . Fabnet Peak Effective % . | . . . . . Robots Rewired . | . . . . . Allies Hacked . | . . . . . Hacks Repelled . | . . . . . Allies | -11 -10 -9 -9 -8 -------- Run | Yrd Mat Mat Min Mat Total Allies . | . . . . . Largest Group . | . . . . . Highest-Rated Group . | . . . . . Highest-Rated Ally . | . . . . . Total Orders . | . . . . . Ally Attacks . | . . . . . Total Damage . | . . . . . Kills . | . . . . . Allies Corrupted . | . . . . . Allies Melted . | . . . . . Intel | -11 -10 -9 -9 -8 ------- Run | Yrd Mat Mat Min Mat Robot Analysis Total . | . . . . . Derelict Logs Recovered 1 | . . . 1 . Drone Launches . | . . . . . Drone Recoveries . | . . . . . Exploration | -11 -10 -9 -9 -8 ------------- Run | Yrd Mat Mat Min Mat Turns Passed 1779 | 55 150 844 598 132 Spaces Moved 868 | 39 98 334 360 37 Core 35 | 17 . . . 18 Treads . | . . . . . Legs 833 | 22 98 334 360 19 Wheels . | . . . . . Hover . | . . . . . Flight . | . . . . . Fastest Speed 50 | 50 120 120 120 190 Average Speed 150 | 89 126 158 141 290 Slowest Speed 550 | 120 190 330 190 550 Overloaded Moves . | . . . . . Propulsion Burnouts . | . . . . . Robots Hopped . | . . . . . Cave-ins Triggered . | . . . . . Exploration Rate (%) 26 | 4 22 29 66 10 Regions Visited 4 Branch Regions 1 Pre-discovered Areas 1 | . . . 1 . Known Exits Taken . | . . . . . Unknown Exits Taken 4 | 1 1 1 1 . Scrap Searched 1 | . . . 1 . Spaces Dug . | . . . . . Terrain Destroyed . | . . . . . Melee . | . . . . . Projectile . | . . . . . AOE . | . . . . . Terrain Rammed . | . . . . . Walls Destroyed . | . . . . . Machines Disabled . | . . . . . Actions | -11 -10 -9 -9 -8 --------- Run | Yrd Mat Mat Min Mat Total 1185 | 54 112 565 402 52 Wait 158 | . . 156 2 . Move 864 | 38 97 333 359 37 Hop . | . . . . . Pick Up 24 | 7 3 6 7 1 Fast Attach 2 | 2 . . . . Attach 24 | 5 1 10 5 3 Detach . | . . . . . Swap . | . . . . . Drop 5 | . 1 2 2 . Fire 107 | 2 10 58 27 10 Melee . | . . . . . Ram 1 | . . . . 1 Kick . | . . . . . Crush . | . . . . . Escape Stasis . | . . . . . Rewire . | . . . . . Trap . | . . . . . Miscellaneous . | . . . . . Route ------- -11/Scrapyard -10/Materials -9/Materials -9/Mines -8/Materials History --------- Turn | Location | Event 6 | -11/Scrapyard | Discovered new exit (range 15) 56 | -11/Scrapyard | Entered Materials 161 | -10/Materials | Discovered new exit (range 3) 206 | -10/Materials | Entered another Materials area 206 | -9/Materials | Evolved 2 slots: Propulsion x1, Utility x1 302 | -9/Materials | Build established: Mutant 411 | -9/Materials | Lost 4 parts (1p1n1u1w) 693 | -9/Materials | Core integrity fell below 50% 996 | -9/Materials | Discovered new exit (range 12) 1050 | -9/Materials | Entered Mines 1064 | -9/Mines | Build established: Scavenger-Mutant 1144 | -9/Mines | Learned location of Zion (-7) 1588 | -9/Mines | Discovered new exit (range 13) 1648 | -9/Mines | Entered Materials 1648 | -8/Materials | Evolved 2 slots: Power x1, Weapon x1 1714 | -8/Materials | Core integrity fell below 50% 1733 | -8/Materials | Lost 8 parts (2p2n1u3w) 1756 | -8/Materials | Core integrity fell below 20% 1780 | -8/Materials | Destroyed by H-55 Commando with Gauss Rifle Last Messages --------------- 01725_ Slammed into R-06 Scavenger. 01727_ Penetrated by Slug. 01733_ K-01 Serf collects debris. 01753_ Acquired Imp. Light Cannon. 01758_ Slug penetrates Wall. 01758_ Critical hit (Burn: +37). 01759_ Y-45 Defender destroyed. 01762_ Slug penetrates Wall. 01762_ Penetrated by Slug. 01764_ K-01 Serf collects debris. 01765_ Penetrated by Slug. 01770_ K-01 Serf collects debris. 01771_ Slug penetrates Wall. 01771_ Penetrated by Slug. 01773_ H-55 Commando knocked back. 01774_ Slug penetrates Wall. 01774_ Slug penetrates Door. 01777_ Slug penetrates Wall. 01779_ K-01 Serf collects debris. 01780_ Slug penetrates Wall. Map ----- +----------------------------------------------------+ | ???????? # #??????????????????????????????? | | ?????????/ """ #??????????????????????????????? | | ?????????# """ #??????????????????????????????? | | ?????????# """ #??????????????????????????????? | | ??????? ?# ##?????????????????????????????? | | ?????????# #####????#?????????????????????? | | ?????????# ##########?????????????????? | | ?????????# % ?????????????????? | | ?????? ??# ?????????????????? | | ?????????# "Y ! """ ? ????????????????? | | ?????????# """ % """ #????????????????? | | ?????? ??######## """ #????????????????? | | ??????????????### !// " #????????????????? | | ????????????##### !/ "%" ##???????????????? | | ???#????????# !/ "[[[ ?????????????? | | ????????????# [[ ?????????????? | | ??????????? # [[ ?????????????? | | ????????????####### ########### #??????????????? | | ???? ?????????????# #?????"??????????????????????? | | ??????????????????# #????????????????????????????? | | ??????????????????#%#???????"????????????????????? | | ????????????????#?# #????????????????????????????? | | ??????????????????#%#????????????????????????????? | | ??????????????????#%#????????????????????????????? | | ??????????????#???# ############+##??????????????? | | ??????????+######## # @ #??????????????? | | ???????# % # #??????????????? | | ???????# !%; ! #??????????????? | | ???????# # #??????????????? | | ???????# """ # ! #??????????????? | | ???????## """ k [[############??????????????? | | ????????????""" [ #?????????????????????????? | | ????????????""" #?????????????????????????? | | ???????????? #?????????????????????????? | | ??????????? #?????????????????????????? | | ?????????? ?????????????????????????? | | ?????????? ?????????????????????????? | | ?????????? ?????????????????????????? | | ???????????######## ?????????????????????????? | | ??????????????????# ????????????????????????? | | ??????????????????# ?????????????????????????? | | ??????????????????# #?????????????????????????? | | ???????????????????? ??????????????????????????? | | ?????????????????????????????????????????????????? | | ?????????????????????????????????????????????????? | | ?????????????????????????????????????????????????? | | ?????????????????????????????????????????????????? | | ?????????????????????????????????????????????????? | | ?????????????????????????????????????????????????? | | ?????????????????????????????????????????????????? | +----------------------------------------------------+ Best States ------------- Heat Dissipation 31 Energy Generation 19 Energy Capacity 310 Matter Stores 300 Matter Capacity 300 Sight Range 16 Terrain Scan Range 16 Terrain Scan Density 10 Armor Coverage 225 Evasion (%) 55 Item Schematics ----------------- None Robot Schematics ------------------ None Fabricated ------------ Nothing Alien Tech Used ----------------- None Achievements -------------- None Challenges ------------ None Game ------ Seed DroneAngularModule Manual? 0 Play Time 00:15:47 Cumulative 4.8 hours Start 2024.07.01 @ 02:41:20 End 2024.07.01 @ 02:56:09 Sessions 1 Manual Loads 0 Difficulty Rogue Special Mode None Game No. 6 Rogue 4 Adventurer 2 Explorer 0 Win Type - Total 0 Types 0/0/0/0/0/0/0/0/0 Lore% 2 Gallery% 10 Achievement% 8 Wizard Run 0 Options --------- Layout 2 ASCII 0 Keyboard 0 Movement Mouse Keybinds 0 Fullscreen 1 Font 48/Smallcaps Map View 50x44 Zoom Use 0% Tactical HUD 1 Map Filters NONE Filters NONE Steam 1 RUN: b262e1f1-08fb-4e4e-900d-baa619e2ff1e